fUST/lending_fUST_20250501
["ID","MTS","AMOUNT","RATE_DAILY","PERIOD"]
[359496896,1746066643762,-500.0,0.00039664,60]
[359496898,1746066643771,-375.58032091,0.00039706,2]
[359496900,1746066643781,-3619.02507406,0.00039745,2]
[359496902,1746066643790,-375.58032091,0.00039803,2]
[359496904,1746066643799,-3125.4,0.00039826,2]
[359496906,1746066643809,-208.36755775,0.00039999,3]
[359496908,1746066643819,-51102.35950383,0.00039999,4]
[359496910,1746066645460,-847.92286168,0.00039999,4]
[359496911,1746066645472,-644.95453371,0.00039999,4]
[359496923,1746066646658,-255.13200005,0.0003778,120]
[359496924,1746066646714,-1638.37338788,0.0003778,120]
[359496925,1746066646724,-27357.18840215,0.00039999,4]
[359496969,1746067596137,-158.860386,0.00027397,2]
[359496970,1746067596303,-98.1220624,0.00033165,2]
[359496974,1746067625100,-60.7383236,0.00033165,2]
[359496975,1746067625122,-633.46910673,0.00033579,2]
[359496976,1746067634114,-1219.946839,0.00033579,2]
[359496977,1746067637127,-302.97320627,0.00033579,2]
[359496978,1746067637149,-499.76475215,0.00035062,3]
[359496979,1746067649100,-1100.23524785,0.00035062,3]
[359496980,1746067649122,-400.0,0.00035062,2]
[359496981,1746067649143,-6922.0859461,0.00035063,2]
[359496982,1746067649165,-238.0,0.00035925,2]
[359496983,1746067649190,-990.48773983,0.00035925,7]
[359496984,1746067652078,-282.55196231,0.00035925,7]
[359496991,1746067766089,-150.0,0.00033825,2]
[359496992,1746067766109,-3779.88955569,0.00035925,7]
[359496993,1746067766131,-250.0,0.00035925,2]
[359496994,1746067766152,-232.989179,0.00036072,2]
[359497002,1746067791754,205.33540038,0.00036161,2]
[359497030,1746067832681,-1934.16378906,0.00036261,2]
[359497031,1746067832691,-160.0,0.00036262,2]
[359497032,1746067832700,-775.9886297,0.00036269,2]
[359497033,1746067832711,-800.0,0.00037357,3]
[359497034,1746067832720,-442.79812604,0.0003759,2]
[359497035,1746067832730,-400.0,0.0003774,2]
[359497036,1746067832740,-4981.24402101,0.00037899,2]
[359497037,1746067832785,-14702.50476296,0.00037899,2]
[359497038,1746067832796,-474.08935612,0.00037973,5]
[359497039,1746067832806,-178.62841817,0.00037973,50]
[359497040,1746067832815,-500.0,0.00037973,5]
[359497041,1746067832827,-500.0,0.00037973,5]
[359497042,1746067832838,-500.0,0.00037973,5]
[359497043,1746067832848,-500.0,0.00037973,4]
[359497044,1746067832857,-500.0,0.00037973,5]
[359497045,1746067832867,-500.0,0.00037973,5]
[359497046,1746067832875,-501.58269039,0.00037973,2]
[359497047,1746067832885,-500.70068139,0.00037973,5]
[359497048,1746067832894,-500.0,0.00037973,5]
[359497049,1746067832903,-500.0,0.00037973,5]
[359497050,1746067832914,-502.32050621,0.00037973,5]
[359497051,1746067832923,-579.39021481,0.00037973,5]
[359497052,1746067832931,-500.0,0.00037973,5]
[359497053,1746067832940,-500.0,0.00037973,5]
[359497054,1746067832950,-500.0,0.00037973,5]
[359497055,1746067832959,-377.29312934,0.00037973,5]
[359497056,1746067832968,-500.0,0.00037973,5]
[359497057,1746067832977,-500.0,0.00037973,2]
[359497058,1746067832987,-500.0,0.00037973,5]
[359497059,1746067832996,-500.0,0.00037973,5]
[359497060,1746067833005,-500.0,0.00037973,5]
[359497061,1746067833014,-500.0,0.00037973,5]
[359497062,1746067833024,-500.0,0.00037973,5]
[359497063,1746067833033,-304.34095563,0.00037981,3]
[359497064,1746067833043,-301.66355144,0.00037989,15]
[359497065,1746067833053,-500.0,0.00037989,15]
[359497066,1746067833062,-378.20732678,0.00037989,15]
[359497067,1746067833072,-663.69428231,0.0003799,13]
[359497068,1746067833081,-324.35783746,0.0003799,2]
[359497069,1746067833090,-1400.11934176,0.0003799,15]
[359497070,1746067833100,-1400.11934176,0.0003799,15]
[359497071,1746067833110,-1400.11934176,0.0003799,15]
[359497072,1746067833119,-1400.11934176,0.0003799,15]
[359497073,1746067833129,-1400.11934176,0.0003799,15]
[359497074,1746067833138,-1400.11934176,0.0003799,15]
[359497075,1746067833147,-1400.11934176,0.0003799,15]
[359497076,1746067833156,-976.44536445,0.0003799,15]
[359497101,1746067838671,-160.0,0.00036262,2]
[359497103,1746067838680,-431.82355164,0.00037873,2]
[359497105,1746067838690,-200.37644836,0.000386,5]
[359497120,1746067838822,-289.57430625,0.00038286,2]
[359497122,1746067838835,-142.24924533,0.00038286,2]
[359497125,1746067838845,-301.19683088,0.000386,5]
[359497127,1746067838855,-502.44710029,0.000386,5]
[359497129,1746067838865,-158.860386,0.00038933,2]
[359497131,1746067838875,-375.58032091,0.0003895,2]
[359497133,1746067838884,-185.3373837,0.00039178,30]
[359497135,1746067838894,-157.4635343,0.00039178,30]
[359497137,1746067838903,-567.4510288,0.00039178,30]
[359497139,1746067838912,-157.4635343,0.00039178,30]
[359497141,1746067838922,-175.1210764,0.00039178,30]
[359497143,1746067838931,-567.4510288,0.00039178,30]
[359497145,1746067838941,-567.4510288,0.00039178,30]
[359497147,1746067838950,-157.4635343,0.00039178,30]
[359497149,1746067838959,-175.1210764,0.00039178,30]
[359497151,1746067838969,-175.1210764,0.00039178,30]
[359497153,1746067838978,-157.4635343,0.00039178,30]
[359497155,1746067838988,-567.4510288,0.00039178,30]
[359497157,1746067838997,-175.1210764,0.00039178,30]
[359497159,1746067839007,-157.4635343,0.00039178,30]
[359497161,1746067839016,-567.4510288,0.00039178,30]
[359497163,1746067839025,-317.3398489,0.00039178,30]
[359497165,1746067839035,-175.1210764,0.00039178,30]
[359497167,1746067839044,-238.24961836,0.00039178,30]
[359497169,1746067839056,-167.42362674,0.00039178,30]
[359497171,1746067839065,-175.1210764,0.00039178,30]
[359497173,1746067839074,-175.1210764,0.00039178,30]
[359497175,1746067839083,-500.0,0.000392,5]
[359497177,1746067839092,-501.04190745,0.000392,5]
[359497179,1746067839101,-500.0,0.000392,5]
[359497181,1746067839110,-500.0,0.000392,5]
[359497183,1746067839120,-503.34521576,0.000392,5]
[359497185,1746067839129,-151.07559212,0.000392,5]
[359497187,1746067839139,-375.58032091,0.00039306,2]
[359497189,1746067839149,-691.617,0.000395,40]
[359497191,1746067839158,-21.34593978,0.00039626,2]
[359497193,1746067839170,-354.23438115,0.00039626,2]
[359497196,1746067839180,-500.0,0.00039664,60]
[359497198,1746067839190,-1016.7,0.000398,90]
[359497200,1746067839199,-4538.60849474,0.000399,2]
[359497202,1746067839209,-500.0,0.00039973,5]
[359497204,1746067839217,-502.54255649,0.00039973,5]
[359497206,1746067839227,-269.83115664,0.00039973,5]
[359497208,1746067839237,-501.17594426,0.00039973,5]
[359497209,1746067839248,-500.0,0.00039973,5]
[359497211,1746067839257,-126.90881295,0.00039973,3]
[359497214,1746067839269,-374.09423795,0.00039973,3]
[359497216,1746067839278,-501.38948846,0.00039973,5]
[359497218,1746067839288,-500.0,0.00039973,5]
[359497220,1746067839297,-501.82934405,0.00039973,5]
[359497222,1746067839307,-590.64531811,0.00039973,5]
[359497224,1746067839316,-502.42284255,0.00039973,5]
[359497226,1746067839326,-150.18633338,0.00039973,5]
[359497227,1746067839336,-500.0,0.00039973,5]
[359497228,1746067839345,-502.51146563,0.00039973,5]
[359497229,1746067839356,-524.42646605,0.0003999,4]
[359497230,1746067839365,-304.34095563,0.0003999,3]
[359497231,1746067839374,-27394.94734412,0.00039999,4]
[359497232,1746067839386,-575.29951297,0.00039999,4]
[359497233,1746067839397,-1020.0,0.00039999,4]
[359497248,1746067841141,-210087.32260151,0.00039999,4]
[359497249,1746067841153,-5572.98454052,0.00039999,4]
[359497506,1746067843759,-431.82355158,0.00038698,2]
[359497508,1746067843769,-5074.04413196,0.00039999,4]
[359497515,1746067843812,-321.66502649,0.00039999,4]
[359497517,1746067843824,-4146.0,0.00039999,4]
[359497816,1746067846897,-25532.48407576,0.00039999,4]
[359497819,1746067846913,-4514.64600118,0.00039999,4]
[359497838,1746067847082,-690.27312543,0.00039999,4]
[359497840,1746067847097,-8107.69585101,0.00039999,4]
[359498125,1746067908357,172.1367595,0.00035566,2]
[359498129,1746068449740,-320.0,0.00025205,2]
[359498131,1746068814143,-19.0,0.00025205,2]
[359498132,1746068814165,-159.00575,0.00027397,2]
[359498133,1746068814191,-38.4601814,0.00030093,2]
[359498134,1746068828093,-177.54761717,0.00030093,2]
[359498135,1746068828116,-187.0,0.00032,120]
[359498136,1746068828143,-159.00575,0.00033486,2]
[359498137,1746068828165,-111.23089266,0.00034691,2]
[359498138,1746068831167,-819.54910734,0.00034691,2]
[359498139,1746068831290,-238.9556301,0.00035094,2]
[359498140,1746068831310,-79.66565368,0.00035287,2]
[359498141,1746068833229,-170.33434632,0.00035287,2]
[359498142,1746068833250,-232.9891798,0.00035768,2]
[359498143,1746068833272,-271.25382063,0.00036011,2]
[359498144,1746068833292,-3128.62471596,0.00037,15]
[359498145,1746068833312,-400.0,0.00037355,2]
[359498146,1746068833331,-160.0,0.00037537,2]
[359498147,1746068833351,-1999.7,0.0003759,2]
[359498148,1746068833375,-3679.68427357,0.00037729,2]
[359498149,1746068854101,-909.19618549,0.00037729,2]
[359498150,1746068950142,-154.4892428,0.00027397,3]
[359498151,1746068959089,-166.0,0.00035157,2]
[359498152,1746068959110,-250.70797393,0.00035287,2]
[359498153,1746069031805,-521.40407205,0.00037628,2]
[359498154,1746069031815,-47.47592795,0.00037728,2]
[359498155,1746069031909,-352.52407205,0.00037728,2]
[359498156,1746069031919,-222.0,0.00037728,3]
[359498157,1746069031929,-7197.29917671,0.00037729,2]
[359498159,1746069031938,-521.40407205,0.00037754,2]
[359498161,1746069031949,-521.40407205,0.0003788,2]
[359498163,1746069031959,-1773.37427058,0.00037971,3]
[359498164,1746069031968,-500.0,0.00037973,5]
[359498165,1746069031977,-457.59303652,0.00037973,5]
[359498167,1746069031987,-406.89882694,0.00037973,5]
[359498169,1746069031998,-603.36145454,0.00037973,2]
[359498170,1746069032010,-500.64692646,0.00037973,5]
[359498171,1746069032019,-184.59429747,0.00037973,5]
[359498172,1746069032028,-388.67263728,0.00037973,5]
[359498173,1746069032037,-500.0,0.00037973,5]
[359498175,1746069032047,-502.83279086,0.00037973,5]
[359498177,1746069032056,-500.0,0.00037973,5]
[359498179,1746069032065,-503.30695592,0.00037973,5]
[359498180,1746069032074,-500.0,0.00037973,5]
[359498181,1746069032083,-500.0,0.00037973,2]
[359498183,1746069032092,-500.0,0.00037973,5]
[359498185,1746069032102,-500.0,0.00037973,5]
[359498186,1746069032111,-200.38119976,0.00037973,5]
[359498188,1746069032120,-300.0,0.00037973,5]
[359498189,1746069032130,-500.0,0.00037973,5]
[359498190,1746069032139,-500.0,0.00037973,5]
[359498191,1746069032148,-500.0,0.00037973,5]
[359498192,1746069032157,-501.86865321,0.00037973,5]
[359498193,1746069032169,-211.16448601,0.0003798,15]
[359498194,1746069032179,-500.0,0.0003798,15]
[359498195,1746069032189,-201.8858027,0.0003798,15]
[359498196,1746069032199,-64.60025481,0.0003798,15]
[359498197,1746069032211,-435.39974519,0.0003798,15]
[359498198,1746069032220,-500.0,0.0003798,15]
[359498199,1746069032233,-500.0,0.0003798,15]
[359498200,1746069032247,-1110.93088724,0.0003798,15]
[359498201,1746069032257,-500.0,0.0003798,15]
[359498202,1746069032269,-500.0,0.0003798,15]
[359498203,1746069032280,-1110.93088724,0.0003798,15]
[359498204,1746069032289,-500.0,0.0003798,15]
[359498205,1746069032298,-500.0,0.0003798,15]
[359498206,1746069032309,-1110.93088724,0.0003798,15]
[359498207,1746069032318,-362.5833797,0.0003798,15]
[359498208,1746069032327,-500.0,0.0003798,15]
[359498209,1746069032337,-500.0,0.0003798,15]
[359498210,1746069032346,-1110.93088724,0.0003798,15]
[359498211,1746069032356,-500.0,0.0003798,15]
[359498212,1746069032366,-500.0,0.0003798,15]
[359498213,1746069032376,-1110.93088724,0.0003798,15]
[359498214,1746069032386,-589.53184941,0.0003798,15]
[359498215,1746069032395,-500.0,0.0003798,15]
[359498216,1746069032404,-1110.93088724,0.0003798,15]
[359498217,1746069032414,-1110.93088724,0.0003798,15]
[359498218,1746069032424,-500.0,0.0003798,15]
[359498219,1746069032433,-500.0,0.0003798,15]
[359498220,1746069032443,-500.0,0.0003798,15]
[359498221,1746069032453,-1110.93088724,0.0003798,15]
[359498222,1746069032463,-500.0,0.0003798,15]
[359498223,1746069032472,-1110.93088724,0.0003798,15]
[359498224,1746069032482,-500.0,0.0003798,15]
[359498225,1746069032492,-500.0,0.0003798,15]
[359498226,1746069032503,-1110.93088724,0.0003798,15]
[359498227,1746069032512,-500.0,0.0003798,15]
[359498228,1746069032521,-500.0,0.0003798,15]
[359498229,1746069032531,-1110.93088724,0.0003798,15]
[359498230,1746069032540,-500.0,0.0003798,15]
[359498231,1746069032550,-1110.93088724,0.0003798,15]
[359498232,1746069032560,-500.0,0.0003798,15]
[359498233,1746069032569,-500.0,0.0003798,15]
[359498234,1746069032579,-1110.93088724,0.0003798,15]
[359498235,1746069032588,-500.0,0.0003798,15]
[359498236,1746069032597,-500.0,0.0003798,15]
[359498237,1746069032607,-1110.93088724,0.0003798,15]
[359498238,1746069032616,-500.0,0.0003798,15]
[359498239,1746069032625,-1110.93088724,0.0003798,15]
[359498240,1746069032634,-500.0,0.0003798,15]
[359498241,1746069032643,-1110.93088724,0.0003798,15]
[359498242,1746069032653,-1110.93088724,0.0003798,15]
[359498243,1746069032663,-1110.93088724,0.0003798,15]
[359498244,1746069032673,-1110.93088724,0.0003798,15]
[359498245,1746069032683,-1110.93088724,0.0003798,15]
[359498246,1746069032693,-1110.93088724,0.0003798,15]
[359498247,1746069032702,-1110.93088724,0.0003798,15]
[359498248,1746069032712,-1110.93088724,0.0003798,15]
[359498249,1746069032721,-1110.93088724,0.0003798,15]
[359498250,1746069032731,-1110.93088724,0.0003798,15]
[359498251,1746069032741,-1110.93088724,0.0003798,15]
[359498252,1746069032751,-1110.93088724,0.0003798,15]
[359498253,1746069032761,-500.0,0.0003798,15]
[359498254,1746069032771,-1110.93088724,0.0003798,15]
[359498255,1746069032781,-500.0,0.0003798,15]
[359498256,1746069032791,-1110.93088724,0.0003798,15]
[359498257,1746069032801,-500.0,0.0003798,15]
[359498258,1746069032811,-1110.93088724,0.0003798,15]
[359498259,1746069032821,-1110.93088724,0.0003798,15]
[359498260,1746069032928,-500.0,0.0003798,15]
[359498261,1746069032938,-1110.93088724,0.0003798,15]
[359498262,1746069032948,-1110.93088724,0.0003798,15]
[359498263,1746069032958,-500.0,0.0003798,15]
[359498264,1746069032967,-1110.93088724,0.0003798,15]
[359498265,1746069032977,-1110.93088724,0.0003798,15]
[359498266,1746069032987,-1110.93088724,0.0003798,15]
[359498267,1746069032996,-200.02384122,0.0003798,15]
[359498268,1746069033007,-1110.93088724,0.0003798,15]
[359498269,1746069033017,-1110.93088724,0.0003798,15]
[359498270,1746069033027,-1110.93088724,0.0003798,15]
[359498271,1746069033037,-1110.93088724,0.0003798,15]
[359498272,1746069033047,-1110.93088724,0.0003798,15]
[359498273,1746069033057,-1110.93088724,0.0003798,15]
[359498274,1746069033067,-1110.93088724,0.0003798,15]
[359498275,1746069033076,-1110.93088724,0.0003798,15]
[359498276,1746069033086,-1110.93088724,0.0003798,15]
[359498277,1746069033096,-1110.93088724,0.0003798,15]
[359498278,1746069033105,-1110.93088724,0.0003798,15]
[359498279,1746069033114,-1110.93088724,0.0003798,15]
[359498280,1746069033124,-1110.93088724,0.0003798,15]
[359498281,1746069033134,-1110.93088724,0.0003798,15]
[359498282,1746069033143,-1110.93088724,0.0003798,15]
[359498283,1746069033153,-1110.93088724,0.0003798,15]
[359498284,1746069033163,-1110.93088724,0.0003798,15]
[359498285,1746069033173,-1110.93088724,0.0003798,15]
[359498286,1746069033183,-1110.93088724,0.0003798,15]
[359498287,1746069033193,-1110.93088724,0.0003798,15]
[359498288,1746069033202,-1110.93088724,0.0003798,15]
[359498289,1746069033212,-1110.93088724,0.0003798,15]
[359498290,1746069033223,-1110.93088724,0.0003798,15]
[359498291,1746069033235,-1110.93088724,0.0003798,15]
[359498292,1746069033245,-500.0,0.0003798,15]
[359498293,1746069033256,-500.0,0.0003798,15]
[359498294,1746069033267,-500.0,0.0003798,15]
[359498295,1746069033279,-251.79405548,0.0003798,15]
[359498296,1746069033289,-500.0,0.0003798,15]
[359498297,1746069033299,-3620.08789841,0.0003798,15]
[359498298,1746069033308,-3620.08789841,0.0003798,15]
[359498299,1746069033320,-3620.08789841,0.0003798,15]
[359498300,1746069033329,-3620.08789841,0.0003798,15]
[359498301,1746069033339,-3620.08789841,0.0003798,15]
[359498302,1746069033348,-3620.08789841,0.0003798,15]
[359498303,1746069033357,-3620.08789841,0.0003798,15]
[359498304,1746069033367,-3620.08789841,0.0003798,15]
[359498305,1746069033377,-3620.08789841,0.0003798,15]
[359498306,1746069033386,-3620.08789841,0.0003798,15]
[359498307,1746069033397,-3620.08789841,0.0003798,15]
[359498308,1746069033406,-3620.08789841,0.0003798,15]
[359498309,1746069033416,-3620.08789841,0.0003798,15]
[359498310,1746069033425,-3620.08789841,0.0003798,15]
[359498311,1746069033435,-3620.08789841,0.0003798,15]
[359498312,1746069033444,-3620.08789841,0.0003798,15]
[359498313,1746069033453,-3620.08789841,0.0003798,15]
[359498314,1746069033462,-3620.08789841,0.0003798,15]
[359498315,1746069033472,-3620.08789841,0.0003798,15]
[359498316,1746069033482,-3620.08789841,0.0003798,15]
[359498317,1746069033491,-387.11436453,0.0003798,15]
[359498318,1746069033649,-2827.48536412,0.0003798,15]
[359498319,1746069033662,-405.48816976,0.0003798,15]
[359498320,1746069033672,-3265.25699904,0.0003798,15]
[359498321,1746069033689,-354.83089937,0.0003798,15]
[359498322,1746069033699,-592.95938945,0.0003798,15]
[359498328,1746069037805,-1610.89906974,0.0003798,15]
[359498329,1746069037817,-1306.75266778,0.0003798,15]
[359498330,1746069037858,-109.47677144,0.0003798,15]
[359498331,1746069037869,-3620.08789841,0.0003798,15]
[359498332,1746069037878,-3620.08789841,0.0003798,15]
[359498333,1746069037887,-3620.08789841,0.0003798,15]
[359498334,1746069037897,-3620.08789841,0.0003798,15]
[359498335,1746069037907,-3620.08789841,0.0003798,15]
[359498336,1746069037916,-373.36211817,0.0003798,15]
[359498337,1746069037927,-3380.80310978,0.0003798,15]
[359498338,1746069037936,-500.0,0.00037989,15]
[359498339,1746069037946,-2618.11492959,0.0003799,3]
[359498340,1746069037958,-337.50885471,0.0003799,3]
[359498341,1746069037967,-2620.96013672,0.00038,2]
[359498510,1746069041645,-84.14509002,0.00038,2]
[359498512,1746069041654,-236.0775,0.00038,3]
[359498514,1746069041663,-4287.0,0.00038,2]
[359498516,1746069041673,-151.0,0.00038,14]
[359498518,1746069041681,-500.0,0.00038,5]
[359498520,1746069041691,-54725.8713908,0.00038,30]
[359498625,1746069052707,-199512.65063074,0.00038,30]
[359498626,1746069052717,-151.0,0.00038,14]
[359498627,1746069052726,-151.0,0.00038,14]
[359498628,1746069052736,-151.0,0.00038,14]
[359498629,1746069052745,-151.0,0.00038,14]
[359498630,1746069052754,-500.0,0.00038082,4]
[359498631,1746069052763,-165.4608999,0.00038704,4]
[359498632,1746069052773,-151.0,0.000389,13]
[359498633,1746069052783,-151.0,0.000391,16]
[359498634,1746069052792,-151.0,0.000394,17]
[359498635,1746069052802,-421.4777418,0.00039508,2]
[359498636,1746069052811,-711.104,0.00039553,2]
[359498637,1746069052820,-2245.0,0.00039553,2]
[359498638,1746069052832,-153.017327,0.00039553,14]
[359498639,1746069052841,-253.718316,0.00039553,14]
[359498640,1746069052850,-151.0,0.00039553,14]
[359498641,1746069052860,-151.0,0.00039553,14]
[359498642,1746069052869,-153.094541,0.00039553,14]
[359498643,1746069052878,-151.0,0.00039553,14]
[359498644,1746069052887,-151.0,0.00039553,14]
[359498645,1746069052896,-151.0,0.00039553,14]
[359498646,1746069052906,-151.0,0.00039553,14]
[359498647,1746069052915,-151.0,0.00039553,14]
[359498648,1746069052925,-156.936783,0.00039553,14]
[359498649,1746069052934,-151.0,0.00039553,14]
[359498650,1746069052995,-151.0,0.00039553,14]
[359498651,1746069053007,-151.0,0.00039553,14]
[359498652,1746069053017,-151.0,0.00039553,14]
[359498653,1746069053027,-206.801438,0.00039553,14]
[359498654,1746069053036,-206.801438,0.00039553,14]
[359498655,1746069053045,-159.00575,0.00039574,2]
[359498656,1746069053054,-151.0,0.000396,19]
[359498657,1746069053063,-613.98816681,0.00039616,5]
[359498658,1746069053071,-591.12475686,0.00039619,3]
[359498659,1746069053080,-151.0,0.00039629,14]
[359498660,1746069053089,-156.982008,0.00039629,14]
[359498661,1746069053098,-152.672107,0.00039629,14]
[359498662,1746069053107,-151.0,0.00039629,14]
[359498663,1746069053116,-151.0,0.00039629,14]
[359498664,1746069053124,-180.745426,0.00039629,14]
[359498665,1746069053134,-170.70390304,0.00039629,14]
[359498666,1746069053143,-4141.90153027,0.00039629,2]
[359498667,1746069053152,-500.0,0.00039664,60]
[359498668,1746069053164,-5296.48445787,0.0003977,2]
[359498669,1746069053174,-151.0,0.000398,20]
[359498670,1746069053184,-1000.0,0.000398,120]
[359498671,1746069053193,-591.12475686,0.0003986,3]
[359498672,1746069053202,-55479.08717098,0.0003987,2]
[359498673,1746069053212,-211.539966,0.0003987,14]
[359498674,1746069053221,-151.0,0.0003987,14]
[359498675,1746069053230,-151.0,0.0003987,14]
[359498676,1746069053243,-151.0,0.0003987,14]
[359498677,1746069053253,-159.006147,0.0003987,14]
[359498678,1746069053262,-151.0,0.0003987,14]
[359498679,1746069053274,-151.0,0.0003987,14]
[359498680,1746069053284,-299.129932,0.0003987,14]
[359498681,1746069053294,-299.129932,0.0003987,14]
[359498682,1746069053303,-948.61771,0.0003987,14]
[359498683,1746069053313,-948.61771,0.0003987,14]
[359498684,1746069053324,-1840.856867,0.0003987,2]
[359498685,1746069053334,-151.0,0.0003987,14]
[359498686,1746069053344,-151.0,0.0003987,14]
[359498687,1746069053354,-1840.856867,0.0003987,2]
[359498688,1746069053363,-151.0,0.0003987,14]
[359498689,1746069053373,-151.0,0.0003987,14]
[359498690,1746069053382,-151.0,0.0003987,14]
[359498691,1746069053391,-151.0,0.0003987,14]
[359498692,1746069053401,-152.86979,0.0003987,14]
[359498693,1746069053416,-151.0,0.0003987,14]
[359498694,1746069053437,-237.74197,0.0003987,14]
[359498695,1746069053455,-151.0,0.0003987,14]
[359498696,1746069053477,-155.575693,0.0003987,14]
[359498697,1746069053498,-151.0,0.0003987,14]
[359498698,1746069053515,-292.572465,0.0003987,14]
[359498699,1746069053536,-151.0,0.0003987,14]
[359498700,1746069053551,-151.0,0.0003987,14]
[359498701,1746069053570,-151.0,0.0003987,14]
[359498702,1746069053589,-151.0,0.0003987,14]
[359498703,1746069053607,-185.094097,0.0003987,14]
[359498704,1746069053623,-206.801438,0.0003987,14]
[359498705,1746069053642,-206.801438,0.0003987,14]
[359498706,1746069053659,-151.0,0.0003987,14]
[359498707,1746069053674,-151.0,0.0003987,14]
[359498708,1746069053688,-5296.48445783,0.00039871,2]
[359498709,1746069053704,-362.0172928,0.0003989,30]
[359498710,1746069053719,-362.0172928,0.0003989,30]
[359498711,1746069053734,-362.0172928,0.0003989,30]
[359498712,1746069053749,-362.0172928,0.0003989,30]
[359498713,1746069053763,-362.0172928,0.0003989,30]
[359498714,1746069053779,-362.0172928,0.0003989,30]
[359498715,1746069053794,-362.0172928,0.0003989,30]
[359498716,1746069053809,-2708.8,0.00039937,2]
[359498717,1746069053824,-2708.8,0.00039937,2]
[359498718,1746069053838,-591.12475686,0.00039963,3]
[359498719,1746069053852,-132177.08561,0.00039971,4]
[359498720,1746069053868,-5296.48445783,0.00039972,2]
[359498721,1746069053882,-500.0,0.00039973,5]
[359498722,1746069053897,-151.82832976,0.00039973,5]
[359498723,1746069053911,-503.54901589,0.00039973,5]
[359498724,1746069053926,-500.0,0.00039973,5]
[359498725,1746069053940,-500.0,0.00039973,5]
[359498726,1746069053956,-500.0,0.00039973,5]
[359498727,1746069053970,-503.13283167,0.00039973,5]
[359498728,1746069053985,-509.22429146,0.00039973,5]
[359498729,1746069054000,-1773.37427058,0.0003999,3]
[359498730,1746069054015,-168.01984086,0.00039998,4]
[359498731,1746069054030,-312.44,0.00039999,5]
[359498732,1746069054045,-161.14138799,0.00039999,2]
[359498733,1746069054060,-1038.0,0.0004,2]
[359498734,1746069054075,-2470.0,0.0004,2]
[359498735,1746069054090,-508.78,0.0004,120]
[359498736,1746069054179,-43315.38990369,0.0004,30]
[359498737,1746069054188,-107774.33777105,0.0004,30]
[359498738,1746069054197,-151.0,0.0004,14]
[359498739,1746069054206,-154.272931,0.0004,14]
[359498740,1746069054215,-151.0,0.0004,14]
[359498741,1746069054223,-151.0,0.0004,14]
[359498742,1746069054232,-151.0,0.0004,14]
[359498743,1746069054244,-151.0,0.0004,14]
[359498744,1746069054254,-151.0,0.0004,2]
[359498745,1746069054263,-151.0,0.0004,2]
[359498746,1746069054274,-151.0,0.0004,14]
[359498747,1746069054285,-151.0,0.0004,14]
[359498748,1746069054294,-151.0,0.0004,14]
[359498749,1746069054303,-255.961636,0.0004,14]
[359498750,1746069054314,-256.3454,0.0004,14]
[359498751,1746069054323,-255.961636,0.0004,14]
[359498752,1746069054332,-151.0,0.0004,14]
[359498753,1746069054341,-151.0,0.0004,14]
[359498754,1746069054351,-151.0,0.0004,14]
[359498755,1746069054360,-151.486079,0.0004,14]
[359498756,1746069054369,-151.0,0.0004,14]
[359498757,1746069054378,-151.601034,0.0004,14]
[359498758,1746069054387,-151.0,0.0004,14]
[359498759,1746069054397,-151.0,0.0004,14]
[359498760,1746069054406,-185.740611,0.0004,14]
[359498761,1746069054415,-185.740611,0.0004,14]
[359498762,1746069054424,-185.740611,0.0004,14]
[359498763,1746069054434,-185.740611,0.0004,14]
[359498764,1746069054443,-151.0,0.0004,14]
[359498765,1746069054452,-282.674262,0.0004,14]
[359498766,1746069054462,-151.0,0.0004,14]
[359498767,1746069054471,-157.537506,0.0004,14]
[359498768,1746069054481,-151.0,0.0004,14]
[359498769,1746069054490,-151.0,0.0004,14]
[359498770,1746069054499,-151.0,0.0004,14]
[359498771,1746069054508,-155.300741,0.0004,14]